bitfinex/quotes_SOLUSD_20241105
["timestamp","ask_amount","ask_price","bid_price","bid_amount"]
[1730814762476,24.027864,163.76,163.71,14.9654]
[1730814762477,24.027864,163.76,163.73,14.34850523]
[1730814762676,24.027864,163.76,163.72,14.34850523]
[1730814763568,24.027864,163.76,163.68,173.14850523]
[1730814763569,14.47399523,163.74,163.68,169.4915]
[1730814763772,0.12549,163.75,163.68,158.8]
[1730814763773,23.902374,163.71,163.68,158.8]
[1730814763974,23.902374,163.71,163.69,14.34850523]
[1730814764276,0.12549,163.71,163.69,14.34850523]
[1730814764693,0.12549,163.71,163.68,14.34850523]
[1730814764984,0.12549,163.69,163.65,14.34850523]
[1730814765695,0.12549,163.69,163.68,14.34850523]
[1730814768675,0.37647,163.69,163.68,14.34850523]
[1730814768877,24.153354,163.69,163.68,14.34850523]
[1730814769389,23.902374,163.69,163.68,18.62510523]
[1730814769573,23.902374,163.69,163.68,14.34850523]
[1730814770995,0.12549,163.69,163.68,14.34850523]
[1730814773087,0.37647,163.69,163.68,14.34850523]
[1730814777400,0.37647,163.69,163.68,9.18309141]
[1730814780685,0.12549,163.69,163.68,9.18309141]
[1730814785907,9.28309141,163.76,163.68,9.18309141]
[1730814785908,0.12549,163.77,163.68,45.91545705]
[1730814786200,4.374,163.78,163.73,9.18309141]
[1730814786501,4.374,163.78,163.74,9.18309141]
[1730814786502,4.274,163.78,163.74,9.18309141]
[1730814786686,4.2737,163.79,163.75,9.18309141]
[1730814787396,4.3737,163.79,163.75,9.18309141]
[1730814787590,0.12549,163.78,163.75,9.18309141]
[1730814787785,4.39949,163.78,163.76,9.18309141]
[1730814787984,24.153354,163.77,163.76,9.18309141]
[1730814789398,4.2732,163.82,163.76,9.18309141]
[1730814789632,0.12549,163.81,163.78,9.18309141]
[1730814789835,4.2732,163.82,163.77,9.18309141]
[1730814790122,0.12549,163.81,163.77,9.18309141]
[1730814791025,24.153354,163.81,163.77,9.18309141]
[1730814792128,28.426654,163.81,163.77,9.18309141]
[1730814792504,28.426654,163.81,163.76,9.18309141]
[1730814792725,28.426654,163.81,163.77,9.18309141]
[1730814793047,0.37647,163.81,163.77,9.18309141]
[1730814795424,0.12549,163.79,163.75,14.9617]
[1730814795601,0.25098,163.79,163.75,24.14479141]
[1730814796237,0.25098,163.79,163.76,9.18309141]
[1730814796529,24.027864,163.78,163.74,9.18309141]
[1730814796854,24.027864,163.78,163.76,9.18309141]
[1730814798015,24.027864,163.78,163.75,9.18309141]
[1730814799006,24.027864,163.78,163.76,9.18309141]
[1730814801318,0.12549,163.78,163.77,9.18309141]
[1730814803234,4.3726,163.84,163.77,24.14299141]
[1730814803428,23.902374,163.83,163.8,9.18309141]
[1730814803817,0.12549,163.82,163.81,9.18309141]
[1730814804425,0.12549,163.82,163.8,9.18309141]
[1730814804635,0.25098,163.82,163.8,9.18309141]
[1730814804825,0.12549,163.82,163.8,9.18309141]
[1730814808218,0.12549,163.82,163.81,9.18309141]
[1730814809754,0.12549,163.82,163.81,13.45629141]
[1730814812525,0.25098,163.87,163.81,24.13939141]
[1730814812819,10.81242831,163.89,163.86,9.18309141]
[1730814813028,0.12549,163.88,163.86,9.18309141]
[1730814813617,6.54102831,163.89,163.87,9.18309141]
[1730814813940,6.54102831,163.89,163.88,9.18309141]
[1730814814556,6.54102831,163.89,163.88,13.45449141]
[1730814815639,0.3505663,163.92,163.88,39.31779141]
[1730814815823,0.3505663,163.92,163.91,9.18309141]
[1730814816645,0.3505663,163.92,163.91,13.45369141]
[1730814816923,4.1191663,163.99,163.91,13.45369141]
[1730814817242,4.1191663,163.99,163.91,24.13019141]
[1730814817442,0.12549,163.98,163.94,9.18309141]
[1730814817733,24.153354,163.98,163.95,9.18309141]
[1730814818142,24.153354,163.98,163.96,9.18309141]
[1730814818351,0.12549,163.98,163.96,9.18309141]
[1730814818649,0.12549,163.98,163.97,9.18309141]
[1730814818819,0.12549,163.98,163.96,9.18309141]
[1730814819222,4.2683,164.0,163.96,9.18309141]
[1730814820245,4.2683,164.0,163.95,13.45259141]
[1730814820461,0.12549,163.99,163.95,13.45259141]
[1730814820629,23.902374,163.99,163.94,10.6746]
[1730814820951,23.902374,163.99,163.96,9.18309141]
[1730814821947,23.902374,163.99,163.97,9.18309141]
[1730814822254,0.12549,163.99,163.97,9.18309141]
[1730814822460,0.3191821,164.01,163.98,9.18309141]
[1730814822632,0.3191821,164.01,164.0,9.18309141]
[1730814825345,0.3191821,164.01,164.0,13.45129141]
[1730814827352,0.3191821,164.01,164.0,50.18365705]
[1730814827575,0.3191821,164.01,164.0,70.18365705]
[1730814827865,0.3191821,164.01,164.0,13.45129141]
[1730814829655,0.3191821,164.01,164.0,50.18365705]
[1730814830452,0.3191821,164.01,164.0,13.45129141]
[1730814831135,0.3191821,164.01,164.0,70.18365705]
[1730814831344,0.3191821,164.01,164.0,228.98365705]
[1730814831741,0.3191821,164.01,164.0,163.0682]
[1730814831939,0.3191821,164.01,164.0,172.25129141]
[1730814832629,0.3191821,164.01,164.0,167.98309141]
[1730814832938,0.3191821,164.01,164.0,9.18309141]
[1730814833362,0.12549,164.0,163.98,9.18309141]
[1730814833540,0.12549,164.0,163.97,9.18309141]
[1730814833860,23.902374,164.0,163.97,9.18309141]
[1730814835464,23.902374,164.0,163.98,14.29862378]
[1730814835655,23.902374,164.0,163.99,14.29862378]
[1730814836568,0.12549,164.0,163.98,14.29862378]
[1730814839447,0.3191821,164.01,163.99,14.29862378]
[1730814839658,0.3191821,164.01,164.0,14.29862378]
[1730814840665,0.12549,164.0,163.98,14.29862378]
[1730814840965,0.12549,164.0,163.99,14.29862378]
[1730814842059,0.3191821,164.01,163.99,18.56712378]
[1730814842254,0.3191821,164.01,163.99,14.29862378]
[1730814842255,0.4446721,164.01,163.99,14.29862378]
[1730814842453,0.12549,164.0,163.99,14.29862378]
[1730814843262,0.12549,164.0,163.98,14.29862378]
[1730814844589,28.296164,164.0,163.97,14.29862378]
[1730814844761,28.296164,164.0,163.94,14.9444]
[1730814844762,0.25098,163.98,163.95,14.29862378]
[1730814845170,0.25098,163.98,163.94,24.97322378]
[1730814845363,0.25098,163.98,163.95,14.29862378]
[1730814845557,0.25098,163.98,163.96,14.29862378]
[1730814845761,0.3191821,164.01,163.97,14.29862378]
[1730814845982,0.12549,164.0,163.98,14.29862378]
[1730814846492,24.027864,164.0,163.97,14.29862378]
[1730814848861,24.027864,164.0,163.98,14.29862378]
[1730814849983,23.902374,164.0,163.99,14.29862378]
[1730814850169,0.12549,164.0,163.99,14.29862378]
[1730814851363,0.12549,164.0,163.98,14.29862378]
[1730814854395,0.12549,164.0,163.99,14.29862378]
[1730814857299,0.12549,164.0,163.99,9.14939272]
[1730814859303,0.12549,163.98,163.93,4.2701]
[1730814859480,0.12549,163.98,163.97,9.14939272]
[1730814860377,0.3191821,164.01,163.97,9.14939272]
[1730814860594,0.12549,164.0,163.99,9.14939272]
[1730814861109,0.12549,164.0,163.93,25.6206]
[1730814861110,0.12549,164.0,163.98,9.14939272]
[1730814862990,0.12549,164.0,163.97,9.14939272]
[1730814863196,0.12549,164.0,163.98,9.14939272]
[1730814864117,0.12549,164.0,163.97,13.41839272]
[1730814865520,0.37647,163.97,163.87,4.83559729]
[1730814865712,0.25098,163.92,163.87,13.98499001]
[1730814865904,0.12549,163.91,163.86,9.14939272]
[1730814866220,0.12549,163.9,163.87,9.14939272]
[1730814866535,0.12549,163.9,163.88,9.14939272]
[1730814866996,0.25098,163.9,163.87,9.14939272]
[1730814867200,0.12549,163.88,163.85,19.82989272]
[1730814868616,0.12549,163.88,163.86,9.14939272]
[1730814869488,0.12549,163.88,163.85,19.82989272]
[1730814870898,0.12549,163.88,163.85,24.10209272]
[1730814872501,0.12549,163.88,163.86,9.14939272]
[1730814873412,0.12549,163.88,163.85,19.82989272]
[1730814874189,0.12549,163.88,163.87,9.14939272]
[1730814879019,0.12549,163.91,163.87,9.14939272]
[1730814879195,24.18335576,163.96,163.89,9.14939272]
[1730814879417,9.14939272,163.95,163.89,9.14939272]
[1730814879620,0.12549,163.94,163.89,9.14939272]
[1730814880126,9.27488272,163.94,163.89,13.42049272]
[1730814880525,0.12549,163.93,163.9,9.14939272]
[1730814880743,0.25098,163.93,163.9,9.14939272]
[1730814882138,0.12549,163.93,163.92,9.14939272]
[1730814882640,9.14939272,163.98,163.92,9.14939272]
[1730814882815,9.14939272,163.98,163.93,9.14939272]
[1730814883015,0.12549,163.97,163.93,9.14939272]
[1730814883215,13.41819272,163.98,163.92,9.14939272]
[1730814883447,9.27488272,163.97,163.92,9.14939272]
[1730814883743,9.27488272,163.97,163.9,14.9479]
[1730814883744,9.27488272,163.97,163.91,9.14939272]
[1730814884244,13.54398272,163.97,163.92,9.14939272]
[1730814884543,24.027864,163.96,163.92,9.14939272]
[1730814886025,24.027864,163.96,163.92,13.41969272]
[1730814886422,9.14939272,163.93,163.87,10.6791]
[1730814886634,24.153354,163.92,163.88,9.14939272]
[1730814887328,24.153354,163.92,163.89,9.14939272]
[1730814887827,0.37647,163.92,163.89,9.14939272]
[1730814890047,0.37647,163.92,163.89,13.42049272]
[1730814894158,0.37647,163.92,163.89,4.2711]
[1730814897157,0.37647,163.92,163.88,13.42069272]
[1730814897558,0.37647,163.92,163.88,4.2713]
[1730814897856,9.14939272,163.91,163.87,10.6791]
[1730814898058,23.902374,163.9,163.87,14.9507]
[1730814898262,0.12549,163.9,163.87,14.9507]
[1730814899357,0.12549,163.9,163.87,19.82849272]
[1730814901431,0.12549,163.9,163.87,24.10009272]
[1730814901756,0.12549,163.9,163.87,14.9507]
[1730814902136,0.12549,163.9,163.87,24.10009272]
[1730814902758,0.12549,163.9,163.88,9.14939272]
[1730814904449,0.12549,163.9,163.89,9.14939272]
[1730814904641,4.2693,163.97,163.89,9.14939272]
[1730814904841,13.41869272,163.97,163.92,4.2703]
[1730814905348,0.12549,163.96,163.92,4.2703]
[1730814905957,13.41869272,163.97,163.92,4.2703]
[1730814906162,9.14939272,163.96,163.92,4.2703]
[1730814906654,0.12549,163.96,163.92,4.2703]
[1730814907162,23.902374,163.96,163.92,4.2703]
[1730814907367,0.25098,163.95,163.92,4.2703]
[1730814907661,0.25098,163.95,163.91,24.09649272]
[1730814907867,0.25098,163.95,163.91,14.9471]
[1730814908168,23.902374,163.91,163.88,10.6782]
[1730814908370,0.12549,163.89,163.85,4.2722]
[1730814908666,0.12549,163.89,163.86,9.14939272]
[1730814909571,0.25098,163.92,163.88,9.14939272]
[1730814909747,0.25098,163.92,163.89,9.14939272]
[1730814910149,9.14939272,163.95,163.9,9.14939272]
[1730814910349,9.14939272,163.96,163.91,9.14939272]
[1730814910768,0.12549,163.95,163.91,9.14939272]
[1730814911071,0.12549,163.92,163.87,24.10009272]
[1730814911866,0.12549,163.91,163.87,24.10009272]
[1730814914565,0.12549,163.9,163.87,10.6791]
[1730814914751,0.12549,163.89,163.87,10.6791]
[1730814914952,0.12549,163.89,163.86,4.2718]
[1730814916577,0.25098,163.87,163.84,10.6809]
[1730814917168,0.25098,163.86,163.82,29.14209272]
[1730814917354,0.12549,163.85,163.82,4.2729]
[1730814917554,23.902374,163.85,163.82,4.2729]
[1730814918454,0.12549,163.85,163.82,4.2729]
[1730814919980,0.12549,163.85,163.83,9.14939272]
[1730814920280,0.12549,163.85,163.84,9.14939272]
[1730814920880,0.12549,163.85,163.82,9.14939272]
[1730814922075,0.12549,163.83,163.81,10.6827]
[1730814922659,0.12549,163.83,163.81,24.10529272]
[1730814923675,0.12549,163.83,163.81,14.9559]
[1730814923881,0.12549,163.83,163.81,24.10529272]
[1730814924387,0.12549,163.83,163.82,9.14939272]
[1730814924883,0.12549,163.83,163.81,9.14939272]
[1730814926689,0.12549,163.83,163.81,13.42239272]
[1730814929257,0.12549,163.83,163.81,24.10549272]
[1730814929590,9.27488272,163.87,163.82,9.14939272]
[1730814929776,0.12549,163.85,163.81,24.10549272]
[1730814930090,0.12549,163.85,163.81,14.9561]
[1730814930892,23.902374,163.85,163.81,14.9561]
[1730814931463,33.05176672,163.85,163.81,14.9561]
[1730814931663,0.12549,163.85,163.81,24.10549272]
[1730814931872,0.12549,163.85,163.82,9.14939272]
[1730814933189,0.12549,163.85,163.83,9.14939272]
[1730814934393,0.12549,163.85,163.82,24.10449272]
[1730814935782,0.12549,163.85,163.83,9.14939272]
[1730814936068,0.25098,163.89,163.84,9.14939272]
[1730814936268,25.01169272,163.91,163.79,36.3269]
[1730814936269,29.28229272,163.91,163.85,9.14939272]
[1730814936575,9.27488272,163.9,163.84,9.14939272]
[1730814936764,9.14939272,163.87,163.79,195.1269]
[1730814936966,9.14939272,163.87,163.82,9.14939272]
[1730814937581,23.902374,163.86,163.82,9.14939272]
[1730814937890,24.153354,163.87,163.82,9.14939272]
[1730814938588,24.153354,163.87,163.83,4.2727]
[1730814938890,37.57434672,163.87,163.82,13.42229272]
[1730814939470,33.17725672,163.85,163.81,10.6824]
[1730814939676,23.902374,163.84,163.81,10.6824]
[1730814940492,23.902374,163.84,163.81,19.83179272]
[1730814940671,0.12549,163.84,163.82,9.14939272]
[1730814941084,0.12549,163.86,163.83,9.14939272]
[1730814942278,0.12549,163.86,163.82,9.14939272]
[1730814942471,0.12549,163.86,163.81,9.14939272]
[1730814942472,0.12549,163.85,163.81,9.14939272]
[1730814942667,0.12549,163.85,163.82,9.14939272]
[1730814942869,23.902374,163.85,163.81,9.14939272]
[1730814943211,0.12549,163.85,163.81,9.14939272]
[1730814943505,0.12549,163.84,163.81,9.14939272]
[1730814944196,0.37647,163.85,163.81,9.14939272]
[1730814944980,0.37647,163.85,163.81,13.42239272]
[1730814945399,0.12549,163.85,163.82,9.14939272]
[1730814946782,0.12549,163.85,163.82,13.42209272]
[1730814947672,0.12549,163.85,163.82,4.2727]
[1730814949280,0.37647,163.85,163.81,14.9563]
[1730814949599,0.37647,163.85,163.81,24.10569272]
[1730814951502,0.37647,163.83,163.81,10.6831]
[1730814951706,0.12549,163.83,163.81,10.6831]
[1730814951885,0.12549,163.83,163.82,9.14939272]
[1730814952195,23.776884,163.85,163.82,9.14939272]
[1730814952604,23.776884,163.87,163.82,9.14939272]
[1730814953508,0.12549,163.86,163.82,9.14939272]
[1730814953708,0.12549,163.86,163.83,4.2727]
[1730814960304,0.12549,163.86,163.82,13.42229272]
[1730814968912,4.2722,163.85,163.81,10.6831]
[1730814969212,23.902374,163.84,163.81,10.6831]
[1730814972144,23.902374,163.84,163.8,9.14939272]
[1730814973043,24.027864,163.82,163.78,14.959]
[1730814973439,24.027864,163.82,163.78,10.685]
[1730814973637,0.12549,163.79,163.75,14.9618]
[1730814974640,0.12549,163.79,163.75,24.11119272]
[1730814975250,0.12549,163.79,163.75,14.9618]
[1730814975557,23.776884,163.78,163.75,14.9618]
[1730814975854,0.12549,163.77,163.75,14.9618]
[1730814976743,0.12549,163.77,163.75,10.687]
[1730814977649,0.12549,163.77,163.75,19.83639272]
[1730814979251,0.12549,163.77,163.75,24.11119272]
[1730814983846,0.12549,163.77,163.75,10.687]
[1730814985360,0.12549,163.77,163.75,14.9618]
[1730814987044,0.25098,163.77,163.73,4.2753]
[1730814987245,0.12549,163.75,163.73,4.2753]
[1730814987652,0.12549,163.75,163.73,13.42469272]
[1730814988950,23.776884,163.78,163.74,9.14939272]
[1730814989256,0.12549,163.78,163.74,9.14939272]
[1730814989470,0.37647,163.78,163.74,9.14939272]
[1730814990340,0.37647,163.78,163.74,13.42419272]
[1730814993664,0.37647,163.78,163.73,24.11299272]
[1730814993665,0.12549,163.76,163.73,24.11299272]
[1730814995967,0.12549,163.74,163.73,10.6883]
[1730814996265,0.12549,163.74,163.72,0.3191821]
[1730814996266,23.902374,163.73,163.72,0.3191821]
[1730814996465,24.153354,163.73,163.72,0.3191821]
[1730814998360,24.027864,163.73,163.72,0.3191821]
[1730814998555,0.12549,163.73,163.72,4.5946821]
[1730814999171,0.12549,163.73,163.72,0.3191821]
[1730814999768,33.30274672,163.73,163.72,0.3191821]
[1730815000562,37.57804672,163.73,163.72,0.3191821]
[1730815003964,28.428654,163.73,163.72,0.3191821]
[1730815008972,24.027864,163.73,163.72,0.3191821]
[1730815009184,23.902374,163.73,163.72,13.74407482]
[1730815009368,24.153354,163.73,163.72,0.3191821]
[1730815018079,4.2737,163.79,163.72,24.43297482]
[1730815018280,9.14939272,163.78,163.72,15.2835821]
[1730815018481,9.27488272,163.77,163.72,11.0080821]
[1730815018788,0.12549,163.75,163.72,11.0080821]
[1730815019489,24.027864,163.75,163.72,11.0080821]
[1730815019982,0.25098,163.74,163.72,0.3191821]
[1730815020564,0.25098,163.73,163.72,0.3191821]
[1730815020769,24.153354,163.73,163.72,0.3191821]
[1730815021183,23.902374,163.73,163.72,0.3191821]
[1730815024886,0.12549,163.73,163.72,0.3191821]
[1730815025070,0.12549,163.73,163.72,4.5946821]
[1730815026178,23.776884,163.76,163.72,24.43297482]
[1730815026374,20.9073,163.8,163.75,9.14939272]
[1730815026575,0.12549,163.79,163.74,9.14939272]
[1730815026776,9.27488272,163.79,163.74,9.14939272]
[1730815026977,4.3724,163.84,163.76,9.14939272]
[1730815027275,0.12549,163.81,163.76,9.14939272]
[1730815027897,9.14939272,163.82,163.76,9.14939272]
[1730815028191,4.2732,163.82,163.76,13.42379272]
[1730815028501,0.12549,163.81,163.76,13.42379272]
[1730815029085,24.153354,163.81,163.76,13.42379272]
[1730815029291,28.426654,163.81,163.76,13.42379272]
[1730815029797,28.426654,163.81,163.77,9.14939272]
[1730815030976,28.426654,163.81,163.75,10.6867]
[1730815031290,28.426654,163.81,163.77,9.14939272]
[1730815032694,37.57604672,163.81,163.76,13.42379272]
[1730815033317,28.426654,163.81,163.76,13.42379272]
[1730815033604,28.426654,163.81,163.77,9.14939272]
[1730815034288,28.426654,163.81,163.76,24.11009272]
[1730815039827,28.426654,163.81,163.77,9.14939272]
[1730815043911,28.426654,163.81,163.76,19.83569272]
[1730815044618,28.426654,163.81,163.76,10.6863]
[1730815044788,0.12549,163.79,163.74,4.275]
[1730815045110,24.153354,163.79,163.76,9.14939272]
[1730815045299,0.12549,163.79,163.77,9.14939272]
[1730815045498,23.776884,163.8,163.78,9.14939272]
[1730815045703,23.902374,163.8,163.79,9.14939272]
[1730815047795,13.42199272,163.84,163.79,13.42309272]
[1730815047994,0.25098,163.83,163.8,9.14939272]
[1730815048209,24.027864,163.83,163.8,9.14939272]
[1730815048993,0.25098,163.82,163.8,9.14939272]
[1730815049219,0.12549,163.82,163.8,24.10649272]
[1730815049594,0.12549,163.82,163.81,9.14939272]
[1730815050617,0.12549,163.82,163.8,14.9571]
[1730815050618,0.12549,163.82,163.8,9.14939272]
[1730815051099,24.153354,163.83,163.79,9.14939272]
[1730815052215,24.153354,163.83,163.8,9.14939272]
[1730815053817,24.153354,163.83,163.8,13.42279272]
[1730815054322,24.153354,163.83,163.81,9.14939272]
[1730815054909,24.153354,163.83,163.8,9.14939272]
[1730815055122,24.153354,163.83,163.78,14.959]
[1730815055301,24.153354,163.83,163.79,9.14939272]
[1730815056824,24.153354,163.83,163.79,13.42299272]
[1730815058413,28.426154,163.83,163.78,24.10829272]
[1730815058728,9.52586272,163.81,163.75,24.11079272]
[1730815059023,0.12549,163.79,163.76,9.14939272]
[1730815059416,0.12549,163.79,163.77,9.14939272]
[1730815059732,24.027864,163.83,163.78,9.14939272]
[1730815060026,0.12549,163.82,163.79,9.14939272]
[1730815061121,24.027864,163.83,163.79,9.14939272]
[1730815061322,24.027864,163.83,163.79,13.42289272]
[1730815064729,24.027864,163.83,163.79,4.2735]
[1730815065029,24.027864,163.83,163.8,9.14939272]
[1730815066002,24.027864,163.83,163.8,13.42279272]
[1730815066203,0.12549,163.82,163.79,19.83359272]
[1730815066706,0.12549,163.82,163.79,10.6842]
[1730815068246,0.12549,163.82,163.79,9.14939272]
[1730815079329,23.902374,163.83,163.81,9.14939272]
[1730815079532,23.902374,163.83,163.82,9.14939272]
[1730815080134,32.06821538,163.88,163.82,9.14939272]
[1730815080334,23.776884,163.86,163.84,9.14939272]
[1730815080547,0.12549,163.85,163.84,9.14939272]
[1730815080743,6.54138251,163.87,163.84,9.14939272]
[1730815080951,6.54138251,163.87,163.86,9.14939272]
[1730815081149,6.54138251,163.87,163.84,24.10279272]
[1730815082337,6.54138251,163.87,163.84,19.83049272]
[1730815082850,23.902374,163.86,163.84,9.14939272]
[1730815083045,23.902374,163.86,163.85,9.14939272]
[1730815083727,23.902374,163.86,163.84,9.14939272]
[1730815087060,23.902374,163.86,163.85,9.14939272]
[1730815088862,23.902374,163.86,163.84,9.14939272]
[1730815091258,23.902374,163.86,163.81,10.6829]
[1730815091462,23.902374,163.86,163.83,9.14939272]
[1730815094468,0.25098,163.85,163.81,24.10549272]
[1730815094659,0.12549,163.84,163.82,9.14939272]
[1730815094962,0.12549,163.84,163.83,9.14939272]
[1730815096664,0.12549,163.85,163.83,9.14939272]
[1730815097051,23.776884,163.86,163.84,9.14939272]
[1730815098348,6.54138251,163.87,163.85,9.14939272]
[1730815099448,6.54138251,163.87,163.84,13.42179272]
[1730815100263,6.54138251,163.87,163.82,14.9551]
[1730815100476,6.54138251,163.87,163.84,9.14939272]
[1730815101067,6.54138251,163.87,163.82,10.6824]
[1730815101267,6.54138251,163.87,163.85,9.14939272]
[1730815104760,6.54138251,163.87,163.86,9.14939272]
[1730815107172,6.54138251,163.87,163.84,51.55107088]
[1730815107376,6.54138251,163.87,163.86,9.14939272]
[1730815109679,6.54138251,163.87,163.84,10.6811]
[1730815109892,6.54138251,163.87,163.85,9.14939272]
[1730815110446,6.54138251,163.87,163.86,9.14939272]
[1730815110672,23.776884,163.86,163.81,10.6828]
[1730815110856,23.902374,163.86,163.85,9.14939272]
[1730815112148,6.54138251,163.87,163.85,9.14939272]
[1730815112351,6.54138251,163.87,163.86,9.14939272]
[1730815112565,30.44375651,163.87,163.86,9.14939272]
[1730815115160,30.44375651,163.87,163.83,14.9541]
[1730815115463,30.44375651,163.87,163.85,9.14939272]
[1730815115859,30.44375651,163.87,163.83,14.9541]
[1730815115860,30.44375651,163.87,163.86,9.14939272]
[1730815117477,6.54138251,163.87,163.86,9.14939272]
[1730815119872,30.44375651,163.87,163.85,9.14939272]
[1730815120471,30.44375651,163.87,163.86,9.14939272]
[1730815121007,30.44375651,163.87,163.85,9.14939272]
[1730815122099,30.44375651,163.87,163.86,9.14939272]
[1730815124677,23.902374,163.86,163.85,9.14939272]
[1730815125899,0.12549,163.84,163.78,4.2737]
[1730815126101,0.12549,163.82,163.8,9.14939272]
[1730815127580,0.25098,163.82,163.8,9.14939272]
[1730815128195,0.25098,163.82,163.81,9.14939272]
[1730815128416,13.14658251,163.87,163.81,9.14939272]
[1730815128579,13.14658251,163.87,163.79,14.958]
[1730815128580,24.027864,163.86,163.84,9.14939272]
[1730815128997,0.12549,163.85,163.83,9.14939272]
[1730815130493,0.12549,163.85,163.82,4.2729]
[1730815130697,0.12549,163.85,163.82,13.42229272]
[1730815131408,0.12549,163.85,163.83,9.14939272]
[1730815134831,0.12549,163.85,163.79,10.6844]
[1730815135036,0.12549,163.85,163.82,9.14939272]
[1730815135620,0.12549,163.85,163.84,9.14939272]
[1730815136328,0.12549,163.84,163.83,9.14939272]
[1730815140743,0.12549,163.84,163.82,9.14939272]
[1730815141136,0.12549,163.84,163.79,10.6844]
[1730815141336,23.902374,163.84,163.81,9.14939272]
[1730815142663,0.12549,163.84,163.81,13.42249272]
[1730815142844,0.12549,163.84,163.82,9.14939272]
[1730815145984,0.25098,163.84,163.82,9.14939272]
[1730815146854,0.25098,163.84,163.81,9.14939272]
[1730815148660,4.52348,163.84,163.79,10.6844]
[1730815148861,4.52348,163.84,163.77,163.074]
[1730815148862,0.37647,163.82,163.77,163.074]
[1730815149031,0.37647,163.8,163.77,158.8]
[1730815149448,9.52586272,163.8,163.75,19.83589272]
[1730815149650,0.12549,163.78,163.75,178.63589272]
[1730815149864,0.37647,163.78,163.75,178.63589272]
[1730815150870,0.37647,163.78,163.76,9.14939272]
[1730815151650,0.37647,163.78,163.77,9.14939272]
[1730815152971,23.776884,163.79,163.77,13.42349272]
[1730815153154,23.776884,163.79,163.78,9.14939272]
[1730815153559,23.902374,163.79,163.78,9.14939272]
[1730815154057,0.12549,163.79,163.77,9.14939272]
[1730815154256,0.25098,163.8,163.77,9.14939272]
[1730815154469,0.25098,163.8,163.78,9.14939272]
[1730815154652,0.12549,163.8,163.78,9.14939272]
[1730815156274,0.12549,163.8,163.78,13.42329272]
[1730815156444,0.12549,163.8,163.79,9.14939272]
[1730815157472,0.12549,163.82,163.79,9.14939272]
[1730815157671,0.25098,163.82,163.79,9.14939272]
[1730815157986,15.77919272,163.86,163.81,9.14939272]
[1730815158159,10.81318251,163.87,163.82,9.14939272]
[1730815158484,6.54138251,163.87,163.84,9.14939272]
[1730815158976,6.54138251,163.87,163.78,10.785]
[1730815158977,0.12549,163.86,163.83,9.14939272]
[1730815159164,6.54138251,163.87,163.83,9.14939272]
[1730815159485,0.12549,163.86,163.84,9.14939272]
[1730815159976,0.12549,163.85,163.84,13.42179272]
[1730815160559,6.54138251,163.87,163.84,24.10289272]
[1730815160760,6.54138251,163.87,163.86,9.14939272]
[1730815160970,6.54138251,163.87,163.85,9.14939272]
[1730815161984,0.12549,163.86,163.85,9.14939272]
[1730815162668,6.54138251,163.87,163.85,24.10209272]
[1730815163075,6.66687251,163.87,163.86,9.14939272]
[1730815163984,6.54138251,163.87,163.86,13.42129272]
[1730815166285,6.54138251,163.87,163.86,33.42129272]
[1730815168874,24.027864,163.94,163.86,44.10109272]
[1730815169079,24.027864,163.94,163.93,9.14939272]
[1730815169080,24.153354,163.94,163.93,9.14939272]
[1730815169571,24.153354,163.94,163.92,9.14939272]
[1730815169775,0.37647,163.94,163.92,9.14939272]
[1730815171788,0.37647,163.94,163.93,9.14939272]
[1730815172259,0.12549,163.94,163.93,9.14939272]
[1730815174592,0.12549,163.94,163.92,9.14939272]
[1730815174785,0.12549,163.94,163.9,19.82659272]
[1730815174786,4.64637,163.94,163.9,19.82659272]
[1730815174990,0.12549,163.92,163.9,9.14939272]
[1730815175198,0.12549,163.92,163.91,9.14939272]
[1730815179808,0.12549,163.92,163.9,9.14939272]
[1730815180007,0.12549,163.92,163.89,13.42029272]
[1730815180302,0.12549,163.92,163.9,9.14939272]
[1730815180690,0.12549,163.92,163.91,9.14939272]
[1730815183607,4.39539,163.94,163.91,9.14939272]
[1730815183914,0.12549,163.94,163.92,9.14939272]
[1730815184095,4.2695,163.96,163.92,9.14939272]
[1730815184613,0.12549,163.95,163.92,9.14939272]
[1730815185510,0.12549,163.94,163.92,9.14939272]
[1730815186710,0.12549,163.96,163.93,9.14939272]
[1730815186902,0.12549,163.96,163.94,9.14939272]
[1730815189420,0.12549,163.96,163.95,9.14939272]